[Event "*** Titled Tuesday Blitz"]
[Site "Chess.com"]
[Date "2020.03.03"]
[Round "3"]
[White "mrkvoz"]
[Black "letsgoband"]
[Result "1/2-1/2"]
[WhiteElo "2702"]
[BlackElo "2492"]
[TimeControl "180+1"]
[EndTime "9:30:51 PST"]
[Termination "Game drawn by agreement"]

1. e4 {[%clk 0:03:00.9]} 1... e5 {[%clk 0:02:56]} 2. Nf3 {[%clk 0:02:59.8]} 2...
Nc6 {[%clk 0:02:56.8]} 3. d4 {[%clk 0:03:00]} 3... exd4 {[%clk 0:02:57]} 4. Nxd4
{[%clk 0:03:00.9]} 4... Bb4+ {[%clk 0:02:57.8]} 5. c3 {[%clk 0:03:00.7]} 5...
Bc5 {[%clk 0:02:57.7]} 6. Nxc6 {[%clk 0:03:01.3]} 6... bxc6 {[%clk 0:02:57.4]}
7. Bd3 {[%clk 0:03:01.5]} 7... d6 {[%clk 0:02:53.5]} 8. O-O {[%clk 0:03:00.8]}
8... h6 {[%clk 0:02:50.4]} 9. Nd2 {[%clk 0:02:54.6]} 9... Nf6 {[%clk 0:02:47]}
10. Nb3 {[%clk 0:02:54.6]} 10... Bb6 {[%clk 0:02:47.3]} 11. c4 {[%clk
0:02:54.9]} 11... Nd7 {[%clk 0:02:38.3]} 12. Qc2 {[%clk 0:02:36.4]} 12... O-O
{[%clk 0:02:38]} 13. Bd2 {[%clk 0:02:30.9]} 13... a5 {[%clk 0:02:34.8]} 14. a4
{[%clk 0:02:26.5]} 14... Nc5 {[%clk 0:02:34.2]} 15. Nxc5 {[%clk 0:02:23.6]}
15... Bxc5 {[%clk 0:02:35.1]} 16. Bc3 {[%clk 0:02:22.9]} 16... Re8 {[%clk
0:02:29.7]} 17. Kh1 {[%clk 0:02:22.1]} 17... Qh4 {[%clk 0:02:06.6]} 18. f4
{[%clk 0:02:19.9]} 18... Bb4 {[%clk 0:02:07]} 19. Bxb4 {[%clk 0:02:19.1]} 19...
axb4 {[%clk 0:02:07.9]} 20. c5 {[%clk 0:02:19.3]} 20... Ba6 {[%clk 0:02:01.2]}
21. Bxa6 {[%clk 0:02:16]} 21... Rxa6 {[%clk 0:02:02.1]} 22. Qc4 {[%clk
0:02:09.5]} 22... Ra5 {[%clk 0:01:52.3]} 23. cxd6 {[%clk 0:02:08.6]} 23... Rh5
{[%clk 0:01:51.9]} 24. h3 {[%clk 0:02:04.8]} 24... cxd6 {[%clk 0:01:50.2]} 25.
Qxc6 {[%clk 0:01:59.9]} 25... Re6 {[%clk 0:01:42.2]} 26. Rf3 {[%clk 0:01:51.3]}
26... Qe7 {[%clk 0:01:40.4]} 27. Re1 {[%clk 0:01:40.9]} 27... Rc5 {[%clk
0:01:39.7]} 28. Qa8+ {[%clk 0:01:34.4]} 28... Kh7 {[%clk 0:01:40.1]} 29. e5
{[%clk 0:01:31.2]} 29... dxe5 {[%clk 0:01:34.6]} 30. Qe4+ {[%clk 0:01:30.7]}
30... Kh8 {[%clk 0:01:17.7]} 31. f5 {[%clk 0:01:28.9]} 31... Rec6 {[%clk
0:01:07.9]} 32. Qxb4 {[%clk 0:01:27.1]} 32... f6 {[%clk 0:00:59.1]} 33. Rc3
{[%clk 0:01:18.7]} 33... Qc7 {[%clk 0:00:53.5]} 34. Rxc5 {[%clk 0:01:18.3]}
34... Rxc5 {[%clk 0:00:54.4]} 35. b3 {[%clk 0:01:05.9]} 35... Rc2 {[%clk
0:00:51.2]} 36. Qe4 {[%clk 0:01:04.1]} 36... Qc3 {[%clk 0:00:50.1]} 37. Rb1
{[%clk 0:00:37.4]} 37... Rd2 {[%clk 0:00:39.7]} 38. b4 {[%clk 0:00:31.3]} 38...
Rd4 {[%clk 0:00:39.5]} 39. Qf3 {[%clk 0:00:20.9]} 39... Rd3 {[%clk 0:00:39.5]}
40. Qa8+ {[%clk 0:00:20.2]} 40... Kh7 {[%clk 0:00:39.8]} 41. a5 {[%clk
0:00:19.5]} 41... Re3 {[%clk 0:00:13.5]} 42. Qe8 {[%clk 0:00:09.8]} 42... e4
{[%clk 0:00:14.1]} 43. Qg6+ {[%clk 0:00:09.2]} 43... Kg8 {[%clk 0:00:14.3]} 44.
Qg4 {[%clk 0:00:08.6]} 44... Re1+ {[%clk 0:00:12.7]} 45. Rxe1 {[%clk 0:00:08.6]}
45... Qxe1+ {[%clk 0:00:13.6]} 46. Kh2 {[%clk 0:00:09.3]} 46... Qxb4 {[%clk
0:00:14.5]} 47. a6 {[%clk 0:00:08.6]} 47... Qd6+ {[%clk 0:00:15.1]} 48. Qg3
{[%clk 0:00:08.7]} 48... Qxa6 {[%clk 0:00:15.6]} 49. Qb8+ {[%clk 0:00:09.2]}
49... Kh7 {[%clk 0:00:16.2]} 50. Qe8 {[%clk 0:00:09.8]} 50... Qd6+ {[%clk
0:00:16.8]} 51. g3 {[%clk 0:00:09.6]} 51... Qe5 {[%clk 0:00:17.2]} 52. Qxe5
{[%clk 0:00:08.7]} 52... fxe5 {[%clk 0:00:18.1]} 53. g4 {[%clk 0:00:09.5]} 53...
g6 {[%clk 0:00:18]} 54. fxg6+ {[%clk 0:00:09.2]} 54... Kxg6 {[%clk 0:00:18.5]}
55. h4 {[%clk 0:00:10.1]} 55... e3 {[%clk 0:00:18]} 56. Kg3 {[%clk 0:00:10.1]}
56... e4 {[%clk 0:00:17.2]} 57. Kg2 {[%clk 0:00:10.6]} 57... Kf6 {[%clk
0:00:17.7]} 58. Kf1 {[%clk 0:00:08.6]} 58... Ke5 {[%clk 0:00:18.3]} 59. Ke2
{[%clk 0:00:09.1]} 59... Kf4 {[%clk 0:00:18.9]} 60. g5 {[%clk 0:00:09.6]} 60...
hxg5 {[%clk 0:00:19.4]} 61. hxg5 {[%clk 0:00:10.5]} 61... Kxg5 {[%clk
0:00:19.7]} 62. Kxe3 {[%clk 0:00:11.4]} 62... Kf5 {[%clk 0:00:20.6]} 63. Ke2
{[%clk 0:00:10.7]} 63... Kf4 {[%clk 0:00:21.5]} 64. Kf2 {[%clk 0:00:11]} 64...
Kg4 {[%clk 0:00:22]} 65. Ke3 {[%clk 0:00:11.1]} 65... Kf5 {[%clk 0:00:22.9]} 66.
Ke2 {[%clk 0:00:11.3]} 66... Ke5 {[%clk 0:00:23.8]} 67. Ke3 {[%clk 0:00:11.6]}
67... Kd5 {[%clk 0:00:22.1]} 1/2-1/2

[Event "*** Titled Tuesday Blitz"]
[Site "Chess.com"]
[Date "2020.03.03"]
[Round "3"]
[White "sganerdene"]
[Black "Vyacheslav_N"]
[Result "0-1"]
[WhiteElo "2691"]
[BlackElo "2532"]
[TimeControl "180+1"]
[EndTime "9:30:52 PST"]
[Termination "Vyacheslav_N won on time"]

1. e4 {[%clk 0:03:00.9]} 1... c5 {[%clk 0:02:50.6]} 2. Nf3 {[%clk 0:03:01]} 2...
Nc6 {[%clk 0:02:49.9]} 3. Bb5 {[%clk 0:02:59.5]} 3... g6 {[%clk 0:02:49.6]} 4.
O-O {[%clk 0:02:59.2]} 4... Bg7 {[%clk 0:02:49.4]} 5. Re1 {[%clk 0:02:59.5]}
5... Nf6 {[%clk 0:02:49]} 6. Nc3 {[%clk 0:02:59.2]} 6... O-O {[%clk 0:02:44.1]}
7. d3 {[%clk 0:02:54.4]} 7... d5 {[%clk 0:02:43.7]} 8. e5 {[%clk 0:02:43.5]}
8... Nd7 {[%clk 0:02:27.3]} 9. Nxd5 {[%clk 0:02:27.2]} 9... Ndxe5 {[%clk
0:01:52.4]} 10. Nxe5 {[%clk 0:02:25.8]} 10... Nxe5 {[%clk 0:01:53.3]} 11. Nc3
{[%clk 0:02:20.7]} 11... a6 {[%clk 0:01:51.1]} 12. Ba4 {[%clk 0:02:20.1]} 12...
b5 {[%clk 0:01:47]} 13. Bb3 {[%clk 0:02:20.1]} 13... Bb7 {[%clk 0:01:47.6]} 14.
Bf4 {[%clk 0:02:19.9]} 14... Nc6 {[%clk 0:01:47.2]} 15. Qf3 {[%clk 0:02:08.3]}
15... Qd7 {[%clk 0:01:32.8]} 16. Qg3 {[%clk 0:01:55.4]} 16... e5 {[%clk
0:01:13.3]} 17. Be3 {[%clk 0:01:51.1]} 17... Nd4 {[%clk 0:01:11.1]} 18. Bxd4
{[%clk 0:01:26.5]} 18... exd4 {[%clk 0:01:00.8]} 19. Ne4 {[%clk 0:01:26.5]}
19... Rac8 {[%clk 0:01:01.2]} 20. Nd6 {[%clk 0:01:25]} 20... Rcd8 {[%clk
0:00:49.5]} 21. Nxb7 {[%clk 0:01:17.1]} 21... Qxb7 {[%clk 0:00:44.7]} 22. a4
{[%clk 0:01:15]} 22... Kh8 {[%clk 0:00:42.2]} 23. axb5 {[%clk 0:01:14.5]} 23...
axb5 {[%clk 0:00:43.1]} 24. Qg5 {[%clk 0:01:11.2]} 24... Qc6 {[%clk 0:00:32.4]}
25. Bxf7 {[%clk 0:01:05.5]} 25... Bf6 {[%clk 0:00:27.4]} 26. Qg4 {[%clk
0:00:42]} 26... Rxf7 {[%clk 0:00:27.2]} 27. Re6 {[%clk 0:00:40.6]} 27... Qd5
{[%clk 0:00:25.9]} 28. Raa6 {[%clk 0:00:38.6]} 28... Bg7 {[%clk 0:00:24.5]} 29.
Qe2 {[%clk 0:00:33.2]} 29... Rdf8 {[%clk 0:00:21.6]} 30. f3 {[%clk 0:00:32.1]}
30... Bh6 {[%clk 0:00:19.4]} 31. Rad6 {[%clk 0:00:31.4]} 31... Qf5 {[%clk
0:00:17.7]} 32. Kh1 {[%clk 0:00:19.7]} 32... Be3 {[%clk 0:00:18.2]} 33. Re4
{[%clk 0:00:17.7]} 33... Rc7 {[%clk 0:00:12.5]} 34. Ra6 {[%clk 0:00:15.1]} 34...
Rfc8 {[%clk 0:00:12.1]} 35. f4 {[%clk 0:00:12.3]} 35... c4 {[%clk 0:00:11.8]}
36. g4 {[%clk 0:00:07.4]} 36... Qf8 {[%clk 0:00:10.7]} 37. dxc4 {[%clk
0:00:06.5]} 37... bxc4 {[%clk 0:00:10.9]} 38. Qf3 {[%clk 0:00:05.4]} 38... Re7
{[%clk 0:00:09.9]} 39. Rae6 {[%clk 0:00:04.5]} 39... Rce8 {[%clk 0:00:09.6]} 40.
Rxe7 {[%clk 0:00:04.4]} 40... Rxe7 {[%clk 0:00:10.5]} 41. Rxe7 {[%clk
0:00:04.8]} 41... Qxe7 {[%clk 0:00:11.4]} 42. f5 {[%clk 0:00:05.2]} 42... Kg7
{[%clk 0:00:11.5]} 43. Kg2 {[%clk 0:00:04.7]} 43... gxf5 {[%clk 0:00:11.7]} 44.
gxf5 {[%clk 0:00:04.6]} 44... Qg5+ {[%clk 0:00:11.8]} 45. Kh3 {[%clk 0:00:04.9]}
45... Kf6 {[%clk 0:00:12.1]} 46. Qc6+ {[%clk 0:00:04.4]} 46... Kxf5 {[%clk
0:00:12.7]} 47. Qd5+ {[%clk 0:00:04.7]} 47... Kg6 {[%clk 0:00:12.9]} 48. Qe6+
{[%clk 0:00:04.7]} 48... Kh5 {[%clk 0:00:13.4]} 49. Qf7+ {[%clk 0:00:04.7]}
49... Qg6 {[%clk 0:00:14.1]} 50. Qf3+ {[%clk 0:00:04.7]} 50... Kh6 {[%clk
0:00:13.9]} 51. Qd5 {[%clk 0:00:04.7]} 51... Qh5+ {[%clk 0:00:13.6]} 52. Qxh5+
{[%clk 0:00:03.8]} 52... Kxh5 {[%clk 0:00:14.5]} 53. Kg3 {[%clk 0:00:03.8]}
53... Bc1 {[%clk 0:00:14.6]} 54. b4 {[%clk 0:00:02.4]} 54... cxb3 {[%clk
0:00:15.3]} 55. cxb3 {[%clk 0:00:02.4]} 55... d3 {[%clk 0:00:16.2]} 56. Kf3
{[%clk 0:00:02.6]} 56... d2 {[%clk 0:00:16.8]} 57. Ke2 {[%clk 0:00:02.9]} 57...
Kh4 {[%clk 0:00:17.4]} 58. b4 {[%clk 0:00:03.2]} 58... Kh3 {[%clk 0:00:17.5]}
59. b5 {[%clk 0:00:03.5]} 59... Ba3 {[%clk 0:00:18]} 60. Kxd2 {[%clk 0:00:03.1]}
60... Kxh2 {[%clk 0:00:18.3]} 61. Ke3 {[%clk 0:00:03.4]} 61... Kg3 {[%clk
0:00:17.7]} 62. Ke2 {[%clk 0:00:03.6]} 62... Kg2 {[%clk 0:00:16.4]} 63. Ke3
{[%clk 0:00:02.6]} 63... Bd6 {[%clk 0:00:16.6]} 0-1

[Event "*** Titled Tuesday Blitz"]
[Site "Chess.com"]
[Date "2020.03.03"]
[Round "3"]
[White "annacramling"]
[Black "czasnaszachy"]
[Result "1-0"]
[WhiteElo "1929"]
[BlackElo "2283"]
[TimeControl "180+1"]
[EndTime "9:30:54 PST"]
[Termination "annacramling won on time"]

1. d4 {[%clk 0:03:00.9]} 1... Nf6 {[%clk 0:02:59.2]} 2. c4 {[%clk 0:02:59.9]}
2... e6 {[%clk 0:02:59.4]} 3. Nc3 {[%clk 0:02:59]} 3... Bb4 {[%clk 0:02:58.7]}
4. Qc2 {[%clk 0:02:55.3]} 4... d5 {[%clk 0:02:52.7]} 5. cxd5 {[%clk 0:02:52.7]}
5... Nxd5 {[%clk 0:02:30.4]} 6. e4 {[%clk 0:02:45.1]} 6... Nxc3 {[%clk
0:02:28.5]} 7. bxc3 {[%clk 0:02:44.6]} 7... Be7 {[%clk 0:01:57.4]} 8. Nf3 {[%clk
0:02:40.1]} 8... O-O {[%clk 0:01:55.3]} 9. Bd3 {[%clk 0:02:37.7]} 9... h6 {[%clk
0:01:54.8]} 10. O-O {[%clk 0:02:35.6]} 10... c5 {[%clk 0:01:54.8]} 11. Be3
{[%clk 0:02:33.6]} 11... Qc7 {[%clk 0:01:50.5]} 12. Rac1 {[%clk 0:02:15]} 12...
b6 {[%clk 0:01:49.2]} 13. Rfd1 {[%clk 0:02:03.1]} 13... Bb7 {[%clk 0:01:48.5]}
14. Qd2 {[%clk 0:01:53.9]} 14... Nd7 {[%clk 0:01:43.3]} 15. Bf4 {[%clk
0:01:53.7]} 15... Bd6 {[%clk 0:01:34.1]} 16. Bxd6 {[%clk 0:01:34]} 16... Qxd6
{[%clk 0:01:33.3]} 17. Bb1 {[%clk 0:01:16.8]} 17... Rfd8 {[%clk 0:01:23]} 18. e5
{[%clk 0:01:04]} 18... Qc7 {[%clk 0:01:10.1]} 19. Qd3 {[%clk 0:01:03.7]} 19...
g6 {[%clk 0:01:09.4]} 20. Qe3 {[%clk 0:01:03.2]} 20... Kg7 {[%clk 0:01:03.8]}
21. Qf4 {[%clk 0:00:58.1]} 21... Rac8 {[%clk 0:00:45.5]} 22. c4 {[%clk
0:00:47.5]} 22... cxd4 {[%clk 0:00:41.9]} 23. Rxd4 {[%clk 0:00:37.7]} 23... Bxf3
{[%clk 0:00:40.8]} 24. Qxf3 {[%clk 0:00:32.9]} 24... Nxe5 {[%clk 0:00:32.5]} 25.
Qc3 {[%clk 0:00:30.1]} 25... Kg8 {[%clk 0:00:23.6]} 26. Rxd8+ {[%clk 0:00:27.3]}
26... Rxd8 {[%clk 0:00:23.4]} 27. Be4 {[%clk 0:00:16.1]} 27... Ng4 {[%clk
0:00:17.5]} 28. g3 {[%clk 0:00:08.5]} 28... Qc5 {[%clk 0:00:17]} 29. Qf3 {[%clk
0:00:07.9]} 29... Ne5 {[%clk 0:00:12.4]} 30. Qf4 {[%clk 0:00:08.1]} 30... g5
{[%clk 0:00:08.4]} 31. Qf6 {[%clk 0:00:05.7]} 31... Ng4 {[%clk 0:00:05.4]} 32.
Qxd8+ {[%clk 0:00:05.2]} 32... Kg7 {[%clk 0:00:04.8]} 33. Qd2 {[%clk 0:00:04.7]}
33... Qe5 {[%clk 0:00:03.8]} 34. Bf3 {[%clk 0:00:04]} 34... Nf6 {[%clk
0:00:03.2]} 35. Qc3 {[%clk 0:00:03.4]} 35... Qf5 {[%clk 0:00:03.1]} 36. Kg2
{[%clk 0:00:01.7]} 36... g4 {[%clk 0:00:03.3]} 37. Re1 {[%clk 0:00:01.8]} 37...
gxf3+ {[%clk 0:00:02.1]} 38. Qxf3 {[%clk 0:00:02.7]} 38... Qg6 {[%clk
0:00:02.3]} 39. Qe3 {[%clk 0:00:02.5]} 39... h5 {[%clk 0:00:02.1]} 40. Qd4
{[%clk 0:00:02.7]} 40... h4 {[%clk 0:00:02.1]} 41. Qxh4 {[%clk 0:00:02.3]} 41...
Qf5 {[%clk 0:00:02.3]} 42. Qd4 {[%clk 0:00:02.4]} 42... Kg6 {[%clk 0:00:01.6]}
43. Qe5 {[%clk 0:00:02.7]} 43... Qg4 {[%clk 0:00:01.2]} 44. Qe2 {[%clk
0:00:02.4]} 44... Qf5 {[%clk 0:00:01.1]} 45. Qf3 {[%clk 0:00:02.7]} 45... Qg5
{[%clk 0:00:01.4]} 46. Qe3 {[%clk 0:00:02.5]} 46... Qf5 {[%clk 0:00:01.8]} 47.
Qe2 {[%clk 0:00:01.6]} 47... Qg5 {[%clk 0:00:02]} 48. Qf3 {[%clk 0:00:01.5]}
48... Qh6 {[%clk 0:00:01.6]} 49. Qf4 {[%clk 0:00:01.7]} 49... Qh5 {[%clk
0:00:01.3]} 50. Qf3 {[%clk 0:00:01.8]} 50... Ng4 {[%clk 0:00:01.1]} 51. Qd3+
{[%clk 0:00:01.7]} 1-0

[Event "*** Titled Tuesday Blitz"]
[Site "Chess.com"]
[Date "2020.03.03"]
[Round "3"]
[White "Abund"]
[Black "chris_rock_comic"]
[Result "0-1"]
[WhiteElo "2715"]
[BlackElo "2890"]
[TimeControl "180+1"]
[EndTime "9:30:55 PST"]
[Termination "chris_rock_comic won by resignation"]

1. Nf3 {[%clk 0:03:00.9]} 1... Nf6 {[%clk 0:02:58.7]} 2. c4 {[%clk 0:02:58.7]}
2... b6 {[%clk 0:02:56.7]} 3. Nc3 {[%clk 0:02:56.4]} 3... Bb7 {[%clk 0:02:56.7]}
4. g3 {[%clk 0:02:54.7]} 4... c5 {[%clk 0:02:55.9]} 5. Bg2 {[%clk 0:02:54.1]}
5... g6 {[%clk 0:02:53]} 6. O-O {[%clk 0:02:53.8]} 6... Bg7 {[%clk 0:02:53.1]}
7. b3 {[%clk 0:02:45.2]} 7... O-O {[%clk 0:02:51.7]} 8. Bb2 {[%clk 0:02:45.1]}
8... d5 {[%clk 0:02:05.7]} 9. Nxd5 {[%clk 0:02:42.4]} 9... Nxd5 {[%clk
0:02:04.3]} 10. Bxg7 {[%clk 0:02:43.3]} 10... Kxg7 {[%clk 0:02:03.3]} 11. cxd5
{[%clk 0:02:42.3]} 11... Qxd5 {[%clk 0:01:56.2]} 12. d4 {[%clk 0:02:38.8]} 12...
cxd4 {[%clk 0:01:51.9]} 13. Nh4 {[%clk 0:02:28.9]} 13... Qd7 {[%clk 0:01:50.3]}
14. Bxb7 {[%clk 0:02:28.7]} 14... Qxb7 {[%clk 0:01:50.1]} 15. Qxd4+ {[%clk
0:02:29.3]} 15... f6 {[%clk 0:01:41.6]} 16. Rfd1 {[%clk 0:02:22.9]} 16... Nc6
{[%clk 0:01:22.4]} 17. Qg4 {[%clk 0:02:13.8]} 17... Ne5 {[%clk 0:01:19.8]} 18.
Qe6 {[%clk 0:02:05.1]} 18... Rac8 {[%clk 0:01:07.4]} 19. f4 {[%clk 0:01:56.3]}
19... Rc6 {[%clk 0:01:03.7]} 20. Qh3 {[%clk 0:01:42.2]} 20... Nf7 {[%clk
0:01:01.4]} 21. Rd7 {[%clk 0:01:41.3]} 21... Qc8 {[%clk 0:00:57.7]} 22. Rad1
{[%clk 0:01:33.2]} 22... Rd8 {[%clk 0:00:48]} 23. Kg2 {[%clk 0:01:04.8]} 23...
Rc2 {[%clk 0:00:41.6]} 24. Qg4 {[%clk 0:00:44.5]} 24... Rxd7 {[%clk 0:00:31.2]}
25. Rxd7 {[%clk 0:00:25.9]} 25... Rxe2+ {[%clk 0:00:29.9]} 26. Qxe2 {[%clk
0:00:21.5]} 26... Qxd7 {[%clk 0:00:28.8]} 27. Nf3 {[%clk 0:00:21.6]} 27... a5
{[%clk 0:00:23.2]} 28. a4 {[%clk 0:00:20.4]} 28... Qb7 {[%clk 0:00:17.7]} 29.
Kf2 {[%clk 0:00:18.1]} 29... Nd6 {[%clk 0:00:14.5]} 30. Qe3 {[%clk 0:00:17.8]}
30... Ne4+ {[%clk 0:00:13.1]} 31. Kg1 {[%clk 0:00:17.4]} 31... Qc6 {[%clk
0:00:13.1]} 32. Nd4 {[%clk 0:00:16.8]} 32... Qd5 {[%clk 0:00:12.7]} 33. h4
{[%clk 0:00:14]} 33... e5 {[%clk 0:00:11.9]} 34. fxe5 {[%clk 0:00:14]} 34...
fxe5 {[%clk 0:00:11.6]} 35. Ne2 {[%clk 0:00:13.2]} 35... Qc5 {[%clk 0:00:11.1]}
36. Qxc5 {[%clk 0:00:10.4]} 36... Nxc5 {[%clk 0:00:11.1]} 37. Nc1 {[%clk
0:00:10.6]} 37... Kf6 {[%clk 0:00:10.9]} 38. Kf2 {[%clk 0:00:11]} 38... e4
{[%clk 0:00:11.1]} 39. g4 {[%clk 0:00:11.1]} 39... Ke5 {[%clk 0:00:11.6]} 40.
Ke3 {[%clk 0:00:11.5]} 40... h5 {[%clk 0:00:11.9]} 41. gxh5 {[%clk 0:00:10.7]}
41... gxh5 {[%clk 0:00:12]} 42. Ne2 {[%clk 0:00:10.3]} 42... Nxb3 {[%clk
0:00:11.7]} 43. Ng3 {[%clk 0:00:10.7]} 43... Nd4 {[%clk 0:00:11.7]} 44. Nxh5
{[%clk 0:00:07.7]} 44... Nf5+ {[%clk 0:00:11.3]} 45. Ke2 {[%clk 0:00:08]} 45...
Nxh4 {[%clk 0:00:11.4]} 46. Ng7 {[%clk 0:00:06.9]} 46... Nf5 {[%clk 0:00:11.3]}
47. Ne8 {[%clk 0:00:06.9]} 47... Kd4 {[%clk 0:00:09.9]} 48. Nc7 {[%clk
0:00:06.6]} 48... Nd6 {[%clk 0:00:08.8]} 49. Ne6+ {[%clk 0:00:05]} 49... Kd5
{[%clk 0:00:08.2]} 50. Nc7+ {[%clk 0:00:05]} 50... Kc4 {[%clk 0:00:08.2]} 51.
Na8 {[%clk 0:00:04.7]} 51... Kc5 {[%clk 0:00:07.8]} 52. Ke3 {[%clk 0:00:04.7]}
52... Kc6 {[%clk 0:00:07.9]} 53. Kd4 {[%clk 0:00:04.4]} 53... Kb7 {[%clk
0:00:07.9]} 54. Nxb6 {[%clk 0:00:04.4]} 54... Kxb6 {[%clk 0:00:08]} 55. Kd5
{[%clk 0:00:05]} 55... e3 {[%clk 0:00:07.6]} 56. Kxd6 {[%clk 0:00:05.7]} 56...
e2 {[%clk 0:00:08.5]} 0-1

[Event "*** Titled Tuesday Blitz"]
[Site "Chess.com"]
[Date "2020.03.03"]
[Round "3"]
[White "Alexander_Moskalenko"]
[Black "lasayon"]
[Result "1-0"]
[WhiteElo "2833"]
[BlackElo "2633"]
[TimeControl "180+1"]
[EndTime "9:30:55 PST"]
[Termination "Alexander_Moskalenko won by resignation"]

1. e4 {[%clk 0:02:43.8]} 1... c6 {[%clk 0:02:58.6]} 2. d4 {[%clk 0:02:42.7]}
2... d5 {[%clk 0:02:58.3]} 3. e5 {[%clk 0:02:43.4]} 3... Bf5 {[%clk 0:02:57.9]}
4. h4 {[%clk 0:02:42.5]} 4... h5 {[%clk 0:02:57]} 5. c4 {[%clk 0:02:40.5]} 5...
e6 {[%clk 0:02:56.7]} 6. Nc3 {[%clk 0:02:41.1]} 6... Nd7 {[%clk 0:02:51.6]} 7.
Nge2 {[%clk 0:02:41.2]} 7... Ne7 {[%clk 0:02:40.4]} 8. Ng3 {[%clk 0:02:41]} 8...
Bg6 {[%clk 0:02:37]} 9. Bg5 {[%clk 0:02:41.5]} 9... dxc4 {[%clk 0:02:32.3]} 10.
Bxc4 {[%clk 0:02:40.4]} 10... Nb6 {[%clk 0:02:32.3]} 11. Bb3 {[%clk 0:02:39.1]}
11... Qd7 {[%clk 0:02:24.7]} 12. O-O {[%clk 0:02:13.4]} 12... Nf5 {[%clk
0:02:19.6]} 13. Nxf5 {[%clk 0:02:12.8]} 13... Bxf5 {[%clk 0:02:19.5]} 14. Qf3
{[%clk 0:02:09.5]} 14... Be7 {[%clk 0:02:12]} 15. Qg3 {[%clk 0:02:03.4]} 15...
Bxg5 {[%clk 0:01:55.2]} 16. Qxg5 {[%clk 0:02:04.3]} 16... g6 {[%clk 0:01:55.6]}
17. Rad1 {[%clk 0:02:02.9]} 17... Qe7 {[%clk 0:01:50.1]} 18. Qf4 {[%clk
0:01:54.5]} 18... Nd5 {[%clk 0:01:44.3]} 19. Bxd5 {[%clk 0:01:49.8]} 19... cxd5
{[%clk 0:01:43.6]} 20. Rd2 {[%clk 0:01:50.2]} 20... Rg8 {[%clk 0:01:42.4]} 21.
Qg5 {[%clk 0:01:47.3]} 21... Qxg5 {[%clk 0:01:40.3]} 22. hxg5 {[%clk 0:01:48.2]}
22... a6 {[%clk 0:01:35]} 23. f3 {[%clk 0:01:46.3]} 23... h4 {[%clk 0:01:32.6]}
24. Kf2 {[%clk 0:01:45.9]} 24... Rc8 {[%clk 0:01:28.5]} 25. Rh1 {[%clk
0:01:45.3]} 25... Rh8 {[%clk 0:01:26.9]} 26. Ke3 {[%clk 0:01:45.8]} 26... Kd7
{[%clk 0:01:18.1]} 27. Rh2 {[%clk 0:01:42]} 27... Rh5 {[%clk 0:01:12.7]} 28. Kf4
{[%clk 0:01:40.9]} 28... Rc4 {[%clk 0:01:09.8]} 29. a3 {[%clk 0:01:14.7]} 29...
b5 {[%clk 0:01:01]} 30. Rh1 {[%clk 0:01:11.8]} 30... Kc6 {[%clk 0:00:58]} 31.
Rc1 {[%clk 0:01:06.8]} 31... Kb6 {[%clk 0:00:56.9]} 32. Rdd1 {[%clk 0:00:59.9]}
32... Rh8 {[%clk 0:00:53.4]} 33. b3 {[%clk 0:00:52.3]} 33... Rc7 {[%clk
0:00:50.1]} 34. Na2 {[%clk 0:00:52.8]} 34... Rhc8 {[%clk 0:00:47.5]} 35. Rxc7
{[%clk 0:00:52.1]} 35... Rxc7 {[%clk 0:00:48.4]} 36. Rc1 {[%clk 0:00:52.8]}
36... Bc2 {[%clk 0:00:43.8]} 37. Nb4 {[%clk 0:00:46.9]} 37... Bxb3 {[%clk
0:00:32.8]} 38. Rxc7 {[%clk 0:00:47.8]} 38... Kxc7 {[%clk 0:00:32.9]} 39. Nxa6+
{[%clk 0:00:48.5]} 39... Kb6 {[%clk 0:00:27.5]} 40. Nc5 {[%clk 0:00:49.4]} 40...
Bc4 {[%clk 0:00:25.8]} 41. Kg4 {[%clk 0:00:49.8]} 41... Bf1 {[%clk 0:00:25.3]}
42. Kxh4 {[%clk 0:00:49.8]} 42... Bxg2 {[%clk 0:00:25.2]} 43. Kg3 {[%clk
0:00:50.4]} 43... Bf1 {[%clk 0:00:25.6]} 44. Kf2 {[%clk 0:00:50.9]} 44... Bc4
{[%clk 0:00:25.6]} 45. Ke3 {[%clk 0:00:45.7]} 45... b4 {[%clk 0:00:18.9]} 46.
axb4 {[%clk 0:00:45.2]} 46... Kb5 {[%clk 0:00:19.2]} 47. Nb7 {[%clk 0:00:45.4]}
47... Kxb4 {[%clk 0:00:18]} 48. Nd6 {[%clk 0:00:46.3]} 48... Kc3 {[%clk
0:00:17]} 49. Nxf7 {[%clk 0:00:46.7]} 49... Bd3 {[%clk 0:00:17.4]} 50. Nd6
{[%clk 0:00:41.3]} 50... Bb1 {[%clk 0:00:16.8]} 51. Nb5+ {[%clk 0:00:40.3]}
51... Kc4 {[%clk 0:00:17]} 52. Nc7 {[%clk 0:00:41.2]} 52... Bf5 {[%clk
0:00:17.2]} 53. Ne8 {[%clk 0:00:41.6]} 53... Kc3 {[%clk 0:00:16.9]} 54. Ng7
{[%clk 0:00:41.4]} 54... Bh3 {[%clk 0:00:16.4]} 55. Ne8 {[%clk 0:00:40.5]} 55...
Bf5 {[%clk 0:00:16]} 56. Nc7 {[%clk 0:00:33.6]} 56... Kc4 {[%clk 0:00:13.7]} 57.
Na6 {[%clk 0:00:31.4]} 57... Bh3 {[%clk 0:00:11.4]} 58. Nb8 {[%clk 0:00:31.3]}
58... Bf5 {[%clk 0:00:10.9]} 59. Nc6 {[%clk 0:00:31.6]} 59... Bh3 {[%clk
0:00:10.1]} 60. Ne7 {[%clk 0:00:31.5]} 1-0